[Event "Titled Tuesday Blitz November 08 Late 2022"]
[White "Paravyan, David"]
[Black "Andreikin, Dmitry"]
[WhiteFideId "4194985"]
[BlackFideId "4158814"]
[WhiteElo "2546"]
[BlackElo "2736"]
[Result "1/2-1/2"]
[Round "10"]
[TimeControl "180+1"]
[Date "2022.11.08"]
[WhiteClock "0:00:04"]
[BlackClock "0:00:08"]

1. e4 {[%clk 0:03:00]}  c5 {[%clk 0:03:00]} 2. Nf3 {[%clk 0:03:01]}  Nc6 {[%clk 0:03:00]} 3. Nc3 {[%clk 0:03:01]}  e6 {[%clk 0:02:53]} 4. d4 {[%clk 0:03:01]}  cxd4 {[%clk 0:02:53]} 5. Nxd4 {[%clk 0:03:02]}  Qc7 {[%clk 0:02:53]} 6. Nxc6 {[%clk 0:03:02]}  bxc6 {[%clk 0:02:53]} 7. Bd3 {[%clk 0:03:03]}  d5 {[%clk 0:02:53]} 8. Qe2 {[%clk 0:03:01]}  Nf6 {[%clk 0:02:48]} 9. exd5 {[%clk 0:03:01]}  cxd5 {[%clk 0:02:47]} 10. Nb5 {[%clk 0:03:01]}  Qb8 {[%clk 0:02:32]} 11. g3 {[%clk 0:03:01]}  Bd6 {[%clk 0:02:24]} 12. Nxd6+ {[%clk 0:03:02]}  Qxd6 {[%clk 0:02:24]} 13. Bf4 {[%clk 0:03:03]}  Qb6 {[%clk 0:02:19]} 14. Be5 {[%clk 0:02:55]}  O-O {[%clk 0:02:13]} 15. Bxf6 {[%clk 0:02:51]}  gxf6 {[%clk 0:02:13]} 16. Qg4+ {[%clk 0:02:23]}  Kh8 {[%clk 0:02:13]} 17. Qh4 {[%clk 0:02:23]}  f5 {[%clk 0:02:12]} 18. Qf6+ {[%clk 0:02:23]}  Kg8 {[%clk 0:02:12]} 19. g4 {[%clk 0:02:19]}  e5 {[%clk 0:01:45]} 20. Qxe5 {[%clk 0:02:00]}  Qb4+ {[%clk 0:01:31]} 21. c3 {[%clk 0:01:50]}  Qxb2 {[%clk 0:01:11]} 22. Rb1 {[%clk 0:01:50]}  Qa3 {[%clk 0:01:11]} 23. gxf5 {[%clk 0:01:45]}  f6 {[%clk 0:01:11]} 24. Rg1+ {[%clk 0:01:45]}  Kh8 {[%clk 0:01:11]} 25. Qc7 {[%clk 0:01:44]}  Bd7 {[%clk 0:01:05]} 26. Kf1 {[%clk 0:01:08]}  Rf7 {[%clk 0:00:54]} 27. Rg3 {[%clk 0:00:55]}  Re8 {[%clk 0:00:40]} 28. Rb8 {[%clk 0:00:41]}  Rxb8 {[%clk 0:00:39]} 29. Qxb8+ {[%clk 0:00:41]}  Qf8 {[%clk 0:00:39]} 30. Qf4 {[%clk 0:00:33]}  Qc5 {[%clk 0:00:31]} 31. Kg2 {[%clk 0:00:32]}  Bc6 {[%clk 0:00:25]} 32. Qb8+ {[%clk 0:00:28]}  Qf8 {[%clk 0:00:24]} 33. Qf4 {[%clk 0:00:16]}  d4+ {[%clk 0:00:22]} 34. Be4 {[%clk 0:00:17]}  Qa8 {[%clk 0:00:14]} 35. Bxc6 {[%clk 0:00:12]}  Qxc6+ {[%clk 0:00:14]} 36. Kh3 {[%clk 0:00:06]}  Qe8 {[%clk 0:00:10]} 37. cxd4 {[%clk 0:00:06]}  Rd7 {[%clk 0:00:09]} 38. Qg4 {[%clk 0:00:06]}  Qf7 {[%clk 0:00:09]} 39. Kg2 {[%clk 0:00:05]}  Qd5+ {[%clk 0:00:08]} 40. Kg1 {[%clk 0:00:05]}  Qxa2 {[%clk 0:00:08]} 41. Qf4 {[%clk 0:00:05]}  Qa1+ {[%clk 0:00:07]} 42. Kg2 {[%clk 0:00:05]}  Qxd4 {[%clk 0:00:07]} 43. Qb8+ {[%clk 0:00:04]}  Rd8 {[%clk 0:00:08]} 44. Qc7 {[%clk 0:00:04]}  Qd7 {[%clk 0:00:07]} 45. Qc3 {[%clk 0:00:03]}  Qxf5 {[%clk 0:00:06]} 46. Qc7 {[%clk 0:00:03]}  Qd7 {[%clk 0:00:05]} 47. Qc3 {[%clk 0:00:02]}  Qd5+ {[%clk 0:00:06]} 48. Kg1 {[%clk 0:00:03]}  Qd1+ {[%clk 0:00:05]} 49. Kg2 {[%clk 0:00:03]}  Qd5+ {[%clk 0:00:06]} 50. Kg1 {[%clk 0:00:04]}  Qe6 {[%clk 0:00:07]} 51. h3 {[%clk 0:00:03]}  Rg8 {[%clk 0:00:03]} 52. Kh2 {[%clk 0:00:03]}  Rxg3 {[%clk 0:00:03]} 53. fxg3 {[%clk 0:00:02]}  Qe2+ {[%clk 0:00:03]} 54. Kg1 {[%clk 0:00:02]}  Qe5 {[%clk 0:00:03]} 55. Qc8+ {[%clk 0:00:02]}  Kg7 {[%clk 0:00:04]} 56. Qb7+ {[%clk 0:00:03]}  Kg6 {[%clk 0:00:04]} 57. Kg2 {[%clk 0:00:03]}  Qe2+ {[%clk 0:00:04]} 58. Kg1 {[%clk 0:00:03]}  Qe3+ {[%clk 0:00:04]} 59. Kg2 {[%clk 0:00:04]}  a5 {[%clk 0:00:03]} 60. Qa8 {[%clk 0:00:04]}  Qd2+ {[%clk 0:00:02]} 61. Kg1 {[%clk 0:00:04]}  Qc1+ {[%clk 0:00:03]} 62. Kg2 {[%clk 0:00:04]}  Qb2+ {[%clk 0:00:03]} 63. Kg1 {[%clk 0:00:05]}  Qb1+ {[%clk 0:00:03]} 64. Kg2 {[%clk 0:00:06]}  Qa2+ {[%clk 0:00:04]} 65. Kg1 {[%clk 0:00:06]}  a4 {[%clk 0:00:05]} 66. Qe8+ {[%clk 0:00:06]}  Kf5 {[%clk 0:00:04]} 67. Qh5+ {[%clk 0:00:03]}  Ke6 {[%clk 0:00:04]} 68. Qe8+ {[%clk 0:00:03]}  Kd6 {[%clk 0:00:05]} 69. Qf8+ {[%clk 0:00:04]}  Ke5 {[%clk 0:00:05]} 70. Qb8+ {[%clk 0:00:03]}  Kd4 {[%clk 0:00:05]} 71. Qf4+ {[%clk 0:00:03]}  Kd3 {[%clk 0:00:03]} 72. Qf5+ {[%clk 0:00:03]}  Kc3 {[%clk 0:00:03]} 73. Qxf6+ {[%clk 0:00:04]}  Kc2 {[%clk 0:00:04]} 74. Qf5+ {[%clk 0:00:04]}  Kb2 {[%clk 0:00:04]} 75. Qe5+ {[%clk 0:00:04]}  Kb1 {[%clk 0:00:04]} 76. Qe1+ {[%clk 0:00:04]}  Kc2 {[%clk 0:00:05]} 77. Qe2+ {[%clk 0:00:04]}  Kb3 {[%clk 0:00:05]} 78. Qe6+ {[%clk 0:00:04]}  Ka3 {[%clk 0:00:06]} 79. Qd6+ {[%clk 0:00:04]}  Kb2 {[%clk 0:00:06]} 80. Qd2+ {[%clk 0:00:04]}  Ka1 {[%clk 0:00:06]} 81. Qd4+ {[%clk 0:00:04]}  Kb1 {[%clk 0:00:06]} 82. Qd1+ {[%clk 0:00:04]}  Kb2 {[%clk 0:00:07]} 83. Qd2+ {[%clk 0:00:05]}  Ka3 {[%clk 0:00:07]} 84. Qd6+ {[%clk 0:00:03]}  Kb3 {[%clk 0:00:08]} 85. Qd5+ {[%clk 0:00:04]}  Kb2 {[%clk 0:00:08]} 86. Qd2+ {[%clk 0:00:04]} 1/2-1/2


[Site "https://www.chess.com"]

[Event "Titled Tuesday Blitz November 08 Late 2022"]
[White "Perez Cruz, Adianet"]
[Black "Clawitter, Craig"]
[WhiteFideId "3510115"]
[BlackFideId "2023105"]
[WhiteElo "2090"]
[BlackElo "2152"]
[Result "0-1"]
[Round "10"]
[TimeControl "180+1"]
[Date "2022.11.09"]
[WhiteClock "0:01:43"]
[BlackClock "0:02:04"]

1. d4 {[%clk 0:03:00]}  e6 {[%clk 0:03:00]} 2. Nf3 {[%clk 0:02:59]}  Nf6 {[%clk 0:03:00]} 3. Bf4 {[%clk 0:02:59]}  b6 {[%clk 0:02:59]} 4. e3 {[%clk 0:02:59]}  Be7 {[%clk 0:02:58]} 5. Nbd2 {[%clk 0:03:00]}  Bb7 {[%clk 0:02:55]} 6. c4 {[%clk 0:03:00]}  Nh5 {[%clk 0:02:55]} 7. Be5 {[%clk 0:02:55]}  d6 {[%clk 0:02:55]} 8. Bg3 {[%clk 0:02:55]}  Nd7 {[%clk 0:02:51]} 9. Bd3 {[%clk 0:02:40]}  g6 {[%clk 0:02:45]} 10. Qe2 {[%clk 0:02:37]}  O-O {[%clk 0:02:43]} 11. O-O {[%clk 0:01:50]}  Nxg3 {[%clk 0:02:42]} 12. hxg3 {[%clk 0:01:50]}  c5 {[%clk 0:02:40]} 13. Be4 {[%clk 0:01:50]}  d5 {[%clk 0:02:35]} 14. Bd3 {[%clk 0:01:49]}  a6 {[%clk 0:02:27]} 15. a4 {[%clk 0:01:48]}  cxd4 {[%clk 0:02:19]} 16. Nxd4 {[%clk 0:01:47]}  Nc5 {[%clk 0:02:17]} 17. Bc2 {[%clk 0:01:47]}  Bf6 {[%clk 0:02:09]} 18. cxd5 {[%clk 0:01:45]}  Qxd5 {[%clk 0:02:06]} 19. b4 {[%clk 0:01:43]}  Qxg2# {[%clk 0:02:04]} 0-1


[Site "https://www.chess.com"]

[Event "Titled Tuesday Blitz November 08 Late 2022"]
[White "Poliakova, Varvara"]
[Black "Pakleza, Zbigniew"]
[WhiteFideId "13518313"]
[BlackFideId "1119290"]
[WhiteElo "2099"]
[BlackElo "2411"]
[Result "0-1"]
[Round "10"]
[TimeControl "180+1"]
[Date "2022.11.09"]
[WhiteClock "0:00:06"]
[BlackClock "0:00:05"]

1. e4 {[%clk 0:02:50]}  d6 {[%clk 0:02:59]} 2. d4 {[%clk 0:02:49]}  Nf6 {[%clk 0:03:00]} 3. Nc3 {[%clk 0:02:48]}  c6 {[%clk 0:03:01]} 4. Bg5 {[%clk 0:02:48]}  Qb6 {[%clk 0:03:00]} 5. Rb1 {[%clk 0:02:40]}  e5 {[%clk 0:02:59]} 6. Nf3 {[%clk 0:02:35]}  Nbd7 {[%clk 0:02:58]} 7. Bc4 {[%clk 0:02:28]}  Be7 {[%clk 0:02:57]} 8. O-O {[%clk 0:02:23]}  O-O {[%clk 0:02:55]} 9. Bb3 {[%clk 0:02:17]}  exd4 {[%clk 0:02:43]} 10. Nxd4 {[%clk 0:02:18]}  Nc5 {[%clk 0:02:43]} 11. Re1 {[%clk 0:02:15]}  Re8 {[%clk 0:02:38]} 12. Qd2 {[%clk 0:02:10]}  Bd7 {[%clk 0:02:14]} 13. Rbd1 {[%clk 0:02:02]}  Rad8 {[%clk 0:02:12]} 14. h3 {[%clk 0:01:48]}  Bc8 {[%clk 0:02:10]} 15. Nf5 {[%clk 0:01:32]}  Bxf5 {[%clk 0:02:06]} 16. exf5 {[%clk 0:01:29]}  d5 {[%clk 0:02:02]} 17. Qd4 {[%clk 0:01:25]}  Nxb3 {[%clk 0:01:29]} 18. Qxb6 {[%clk 0:01:24]}  axb6 {[%clk 0:01:30]} 19. axb3 {[%clk 0:01:22]}  b5 {[%clk 0:01:31]} 20. Ne2 {[%clk 0:01:17]}  h6 {[%clk 0:01:24]} 21. Be3 {[%clk 0:01:14]}  Ne4 {[%clk 0:01:21]} 22. Nd4 {[%clk 0:01:10]}  Bf6 {[%clk 0:01:14]} 23. f3 {[%clk 0:01:06]}  Ng3 {[%clk 0:01:02]} 24. Kf2 {[%clk 0:00:59]}  Bxd4 {[%clk 0:01:02]} 25. Bxd4 {[%clk 0:00:59]}  Nxf5 {[%clk 0:01:03]} 26. Bb6 {[%clk 0:00:54]}  Ra8 {[%clk 0:01:01]} 27. Ra1 {[%clk 0:00:49]}  f6 {[%clk 0:00:32]} 28. g4 {[%clk 0:00:40]}  Nh4 {[%clk 0:00:24]} 29. Rxa8 {[%clk 0:00:21]}  Rxa8 {[%clk 0:00:25]} 30. Re7 {[%clk 0:00:12]}  Ra1 {[%clk 0:00:26]} 31. Rxb7 {[%clk 0:00:13]}  Rc1 {[%clk 0:00:26]} 32. c3 {[%clk 0:00:12]}  Rc2+ {[%clk 0:00:25]} 33. Ke3 {[%clk 0:00:13]}  Rxb2 {[%clk 0:00:22]} 34. Rb8+ {[%clk 0:00:13]}  Kf7 {[%clk 0:00:22]} 35. b4 {[%clk 0:00:14]}  g5 {[%clk 0:00:16]} 36. Rb7+ {[%clk 0:00:14]}  Kg6 {[%clk 0:00:16]} 37. Bc7 {[%clk 0:00:11]}  h5 {[%clk 0:00:12]} 38. Rb6 {[%clk 0:00:11]}  Ng2+ {[%clk 0:00:08]} 39. Kd3 {[%clk 0:00:11]}  Ne1+ {[%clk 0:00:08]} 40. Kd4 {[%clk 0:00:11]}  Nxf3+ {[%clk 0:00:07]} 41. Kc5 {[%clk 0:00:10]}  hxg4 {[%clk 0:00:07]} 42. hxg4 {[%clk 0:00:10]}  Rg2 {[%clk 0:00:08]} 43. Rxc6 {[%clk 0:00:10]}  Rxg4 {[%clk 0:00:09]} 44. Kxb5 {[%clk 0:00:08]}  d4 {[%clk 0:00:08]} 45. c4 {[%clk 0:00:08]}  d3 {[%clk 0:00:09]} 46. Rd6 {[%clk 0:00:09]}  Nd4+ {[%clk 0:00:08]} 47. Kc5 {[%clk 0:00:06]}  d2 {[%clk 0:00:08]} 48. b5 {[%clk 0:00:06]}  d1=Q {[%clk 0:00:08]} 49. b6 {[%clk 0:00:07]}  Nb3+ {[%clk 0:00:06]} 50. Kc6 {[%clk 0:00:07]}  Na5+ {[%clk 0:00:06]} 51. Kd7 {[%clk 0:00:07]}  Qxd6+ {[%clk 0:00:04]} 52. Bxd6 {[%clk 0:00:06]}  Rxc4 {[%clk 0:00:05]} 53. b7 {[%clk 0:00:06]}  Nxb7 {[%clk 0:00:05]} 0-1


[Site "https://www.chess.com"]

[Event "Titled Tuesday Blitz November 08 Late 2022"]
[White "Polster, Christian"]
[Black "Pinheiro, Iung Alicio de O."]
[WhiteFideId "12965081"]
[BlackFideId "2104350"]
[WhiteElo "2209"]
[BlackElo "2283"]
[Result "0-1"]
[Round "10"]
[TimeControl "180+1"]
[Date "2022.11.09"]
[WhiteClock "0:00:01"]
[BlackClock "0:00:59"]

1. e4 {[%clk 0:03:00]}  c6 {[%clk 0:02:57]} 2. d4 {[%clk 0:02:53]}  d5 {[%clk 0:02:57]} 3. e5 {[%clk 0:02:52]}  Bf5 {[%clk 0:02:57]} 4. h4 {[%clk 0:02:49]}  h6 {[%clk 0:02:56]} 5. g4 {[%clk 0:02:47]}  Bd7 {[%clk 0:02:56]} 6. f4 {[%clk 0:02:34]}  c5 {[%clk 0:02:50]} 7. c3 {[%clk 0:02:17]}  e6 {[%clk 0:02:29]} 8. Nf3 {[%clk 0:02:12]}  Qb6 {[%clk 0:02:28]} 9. Rh2 {[%clk 0:01:47]}  Bb5 {[%clk 0:02:11]} 10. Be3 {[%clk 0:01:31]}  h5 {[%clk 0:02:06]} 11. gxh5 {[%clk 0:01:14]}  Bxf1 {[%clk 0:02:00]} 12. Kxf1 {[%clk 0:01:08]}  Nh6 {[%clk 0:02:00]} 13. Ng5 {[%clk 0:00:53]}  Nf5 {[%clk 0:01:56]} 14. Qf3 {[%clk 0:00:27]}  Nc6 {[%clk 0:01:38]} 15. Nd2 {[%clk 0:00:13]}  cxd4 {[%clk 0:01:27]} 16. cxd4 {[%clk 0:00:09]}  Ncxd4 {[%clk 0:01:19]} 17. Bxd4 {[%clk 0:00:05]}  Nxd4 {[%clk 0:01:16]} 18. Qd3 {[%clk 0:00:01]}  Nf5 {[%clk 0:01:06]} 19. Rc1 {[%clk 0:00:01]}  Bc5 {[%clk 0:00:59]} 0-1


[Site "https://www.chess.com"]

[Event "Titled Tuesday Blitz November 08 Late 2022"]
[White "Przybylski, Wojciech"]
[Black "Gritsenko, Nikolai"]
[WhiteFideId "1117599"]
[BlackFideId "14112493"]
[WhiteElo "2221"]
[BlackElo "2389"]
[Result "0-1"]
[Round "10"]
[TimeControl "180+1"]
[Date "2022.11.09"]
[WhiteClock "0:00:02"]
[BlackClock "0:00:08"]

1. e4 {[%clk 0:03:00]}  c5 {[%clk 0:02:58]} 2. Nf3 {[%clk 0:02:58]}  Nf6 {[%clk 0:02:58]} 3. Nc3 {[%clk 0:02:57]}  Nc6 {[%clk 0:02:57]} 4. Bb5 {[%clk 0:02:54]}  e6 {[%clk 0:02:56]} 5. O-O {[%clk 0:02:53]}  Be7 {[%clk 0:02:57]} 6. Bxc6 {[%clk 0:02:52]}  bxc6 {[%clk 0:02:56]} 7. d3 {[%clk 0:02:52]}  O-O {[%clk 0:02:54]} 8. Re1 {[%clk 0:02:49]}  Ne8 {[%clk 0:02:54]} 9. Be3 {[%clk 0:02:46]}  f6 {[%clk 0:02:51]} 10. d4 {[%clk 0:02:44]}  cxd4 {[%clk 0:02:50]} 11. Nxd4 {[%clk 0:02:43]}  Qc7 {[%clk 0:02:40]} 12. Qh5 {[%clk 0:02:38]}  Qe5 {[%clk 0:02:27]} 13. Qh3 {[%clk 0:02:36]}  Nd6 {[%clk 0:02:18]} 14. Nb3 {[%clk 0:02:26]}  Nc4 {[%clk 0:02:13]} 15. Bd4 {[%clk 0:02:25]}  Qc7 {[%clk 0:02:12]} 16. Ne2 {[%clk 0:02:15]}  e5 {[%clk 0:02:06]} 17. Bc3 {[%clk 0:02:13]}  d5 {[%clk 0:02:05]} 18. Qd3 {[%clk 0:02:04]}  Be6 {[%clk 0:01:51]} 19. Nd2 {[%clk 0:02:01]}  d4 {[%clk 0:01:46]} 20. Nxc4 {[%clk 0:01:57]}  dxc3 {[%clk 0:01:46]} 21. Qxc3 {[%clk 0:01:55]}  Rab8 {[%clk 0:01:43]} 22. a3 {[%clk 0:01:52]}  Kh8 {[%clk 0:01:42]} 23. Ne3 {[%clk 0:01:49]}  Qb6 {[%clk 0:01:37]} 24. b3 {[%clk 0:01:46]}  Bc5 {[%clk 0:01:33]} 25. Red1 {[%clk 0:01:19]}  Rbd8 {[%clk 0:01:24]} 26. Rxd8 {[%clk 0:01:00]}  Rxd8 {[%clk 0:01:23]} 27. Rd1 {[%clk 0:00:57]}  Rxd1+ {[%clk 0:01:20]} 28. Nxd1 {[%clk 0:00:57]}  Bxa3 {[%clk 0:01:20]} 29. Qd3 {[%clk 0:00:51]}  Bc5 {[%clk 0:01:13]} 30. Kf1 {[%clk 0:00:46]}  a5 {[%clk 0:01:11]} 31. Ne3 {[%clk 0:00:45]}  g6 {[%clk 0:01:01]} 32. Nc4 {[%clk 0:00:35]}  Qc7 {[%clk 0:00:36]} 33. Nc3 {[%clk 0:00:32]}  Kg7 {[%clk 0:00:33]} 34. Na4 {[%clk 0:00:31]}  Be7 {[%clk 0:00:33]} 35. h3 {[%clk 0:00:30]}  h5 {[%clk 0:00:32]} 36. Ke2 {[%clk 0:00:29]}  h4 {[%clk 0:00:32]} 37. Nc3 {[%clk 0:00:28]}  Bb4 {[%clk 0:00:31]} 38. Na4 {[%clk 0:00:28]}  f5 {[%clk 0:00:31]} 39. Ne3 {[%clk 0:00:21]}  Kf6 {[%clk 0:00:27]} 40. Nb2 {[%clk 0:00:18]}  Qd6 {[%clk 0:00:23]} 41. Nbc4 {[%clk 0:00:16]}  Qd4 {[%clk 0:00:19]} 42. Qxd4 {[%clk 0:00:07]}  exd4 {[%clk 0:00:19]} 43. exf5 {[%clk 0:00:06]}  gxf5 {[%clk 0:00:17]} 44. Nd1 {[%clk 0:00:06]}  Bxc4+ {[%clk 0:00:17]} 45. bxc4 {[%clk 0:00:04]}  a4 {[%clk 0:00:17]} 46. c3 {[%clk 0:00:03]}  a3 {[%clk 0:00:15]} 47. cxb4 {[%clk 0:00:02]}  a2 {[%clk 0:00:15]} 48. b5 {[%clk 0:00:02]}  cxb5 {[%clk 0:00:15]} 49. cxb5 {[%clk 0:00:02]}  a1=Q {[%clk 0:00:15]} 50. b6 {[%clk 0:00:02]}  Qb1 {[%clk 0:00:15]} 51. b7 {[%clk 0:00:02]}  Qxb7 {[%clk 0:00:15]} 52. Kd3 {[%clk 0:00:03]}  Qxg2 {[%clk 0:00:14]} 53. Kxd4 {[%clk 0:00:03]}  Qe4+ {[%clk 0:00:13]} 54. Kc3 {[%clk 0:00:03]}  Qf3+ {[%clk 0:00:12]} 55. Kd2 {[%clk 0:00:03]}  f4 {[%clk 0:00:11]} 56. Nc3 {[%clk 0:00:02]}  Qxf2+ {[%clk 0:00:11]} 57. Kd3 {[%clk 0:00:02]}  Qe3+ {[%clk 0:00:11]} 58. Kc4 {[%clk 0:00:02]}  Qxh3 {[%clk 0:00:11]} 59. Nd5+ {[%clk 0:00:01]}  Kg5 {[%clk 0:00:10]} 60. Nc7 {[%clk 0:00:01]}  Qc8 {[%clk 0:00:09]} 61. Kd5 {[%clk 0:00:01]}  Qxc7 {[%clk 0:00:09]} 62. Ke4 {[%clk 0:00:02]}  Qc3 {[%clk 0:00:08]} 63. Kd5 {[%clk 0:00:02]}  f3 {[%clk 0:00:08]} 64. Ke4 {[%clk 0:00:02]}  f2 {[%clk 0:00:08]} 0-1


[Site "https://www.chess.com"]

[Event "Titled Tuesday Blitz November 08 Late 2022"]
[White "Reprintsev, Alexander"]
[Black "Souleidis, Georgios"]
[WhiteFideId "14100541"]
[BlackFideId "4206827"]
[WhiteElo "2230"]
[BlackElo "2401"]
[Result "1-0"]
[Round "10"]
[TimeControl "180+1"]
[Date "2022.11.09"]
[WhiteClock "0:00:20"]
[BlackClock "0:00:03"]

1. e4 {[%clk 0:03:00]}  c5 {[%clk 0:03:00]} 2. b3 {[%clk 0:02:55]}  e6 {[%clk 0:02:59]} 3. Qe2 {[%clk 0:02:49]}  a6 {[%clk 0:02:57]} 4. Bb2 {[%clk 0:02:48]}  Nc6 {[%clk 0:02:56]} 5. Nf3 {[%clk 0:02:48]}  b5 {[%clk 0:02:55]} 6. a4 {[%clk 0:02:46]}  Nb4 {[%clk 0:02:50]} 7. d3 {[%clk 0:02:37]}  Bb7 {[%clk 0:02:45]} 8. g3 {[%clk 0:02:35]}  d6 {[%clk 0:02:42]} 9. Bg2 {[%clk 0:02:35]}  Nf6 {[%clk 0:02:42]} 10. O-O {[%clk 0:02:35]}  Be7 {[%clk 0:02:42]} 11. c3 {[%clk 0:02:28]}  Nc6 {[%clk 0:02:41]} 12. d4 {[%clk 0:02:23]}  Qb6 {[%clk 0:02:02]} 13. d5 {[%clk 0:01:52]}  exd5 {[%clk 0:01:35]} 14. exd5 {[%clk 0:01:52]}  Na5 {[%clk 0:01:29]} 15. c4 {[%clk 0:01:45]}  O-O {[%clk 0:00:48]} 16. axb5 {[%clk 0:01:29]}  Nxb3 {[%clk 0:00:45]} 17. Ra3 {[%clk 0:01:28]}  Na5 {[%clk 0:00:27]} 18. Rxa5 {[%clk 0:01:27]}  Qxa5 {[%clk 0:00:26]} 19. Qxe7 {[%clk 0:01:28]}  Rfe8 {[%clk 0:00:05]} 20. Qxb7 {[%clk 0:01:27]}  Rab8 {[%clk 0:00:05]} 21. Qc6 {[%clk 0:01:26]}  Rb6 {[%clk 0:00:05]} 22. Qc7 {[%clk 0:01:19]}  axb5 {[%clk 0:00:06]} 23. Bxf6 {[%clk 0:01:18]}  gxf6 {[%clk 0:00:07]} 24. Nbd2 {[%clk 0:01:07]}  b4 {[%clk 0:00:07]} 25. Nb3 {[%clk 0:00:58]}  Qa6 {[%clk 0:00:05]} 26. Ra1 {[%clk 0:00:57]}  Qb7 {[%clk 0:00:02]} 27. Qxb7 {[%clk 0:00:56]}  Rxb7 {[%clk 0:00:03]} 28. Kf1 {[%clk 0:00:54]}  Rbb8 {[%clk 0:00:03]} 29. Ra6 {[%clk 0:00:52]}  Red8 {[%clk 0:00:01]} 30. Nfd2 {[%clk 0:00:50]}  Ra8 {[%clk 0:00:02]} 31. Rc6 {[%clk 0:00:34]}  Ra3 {[%clk 0:00:03]} 32. Be4 {[%clk 0:00:32]}  h6 {[%clk 0:00:03]} 33. Ke2 {[%clk 0:00:30]}  Kf8 {[%clk 0:00:03]} 34. Bc2 {[%clk 0:00:28]}  Ra2 {[%clk 0:00:03]} 35. Kd3 {[%clk 0:00:27]}  Ke7 {[%clk 0:00:03]} 36. Ne4 {[%clk 0:00:27]}  Rd7 {[%clk 0:00:03]} 37. g4 {[%clk 0:00:22]}  Ra3 {[%clk 0:00:04]} 38. Ng3 {[%clk 0:00:21]}  Ra2 {[%clk 0:00:02]} 39. Nf5+ {[%clk 0:00:21]}  Kf8 {[%clk 0:00:03]} 40. Rxd6 {[%clk 0:00:20]}  Rxd6 {[%clk 0:00:03]} 41. Nxd6 {[%clk 0:00:21]}  Ke7 {[%clk 0:00:04]} 42. Ne4 {[%clk 0:00:21]}  f5 {[%clk 0:00:03]} 43. gxf5 {[%clk 0:00:20]}  Kd7 {[%clk 0:00:03]} 44. Nexc5+ {[%clk 0:00:20]} 1-0


[Site "https://www.chess.com"]

[Event "Titled Tuesday Blitz November 08 Late 2022"]
[White "Rodriguez Fontecha, Marcos"]
[Black "Goryachkina, Aleksandra"]
[WhiteFideId "2256576"]
[BlackFideId "4147103"]
[WhiteElo "2263"]
[BlackElo "2484"]
[Result "0-1"]
[Round "10"]
[TimeControl "180+1"]
[Date "2022.11.09"]
[WhiteClock "0:00:07"]
[BlackClock "0:00:16"]

1. Nf3 {[%clk 0:02:59]}  Nf6 {[%clk 0:02:57]} 2. g4 {[%clk 0:02:59]}  Nxg4 {[%clk 0:02:55]} 3. e4 {[%clk 0:03:00]}  d6 {[%clk 0:02:53]} 4. Nc3 {[%clk 0:02:59]}  e5 {[%clk 0:02:50]} 5. Bc4 {[%clk 0:02:59]}  c6 {[%clk 0:02:37]} 6. Rg1 {[%clk 0:02:57]}  h6 {[%clk 0:02:27]} 7. d4 {[%clk 0:02:56]}  exd4 {[%clk 0:02:19]} 8. Qxd4 {[%clk 0:02:57]}  Qf6 {[%clk 0:02:15]} 9. Qd3 {[%clk 0:02:45]}  Nd7 {[%clk 0:01:55]} 10. Rxg4 {[%clk 0:02:37]}  Nc5 {[%clk 0:01:54]} 11. Qd4 {[%clk 0:02:06]}  Qxd4 {[%clk 0:01:49]} 12. Nxd4 {[%clk 0:02:07]}  Bxg4 {[%clk 0:01:48]} 13. f3 {[%clk 0:01:50]}  Be6 {[%clk 0:01:46]} 14. Be2 {[%clk 0:01:50]}  Be7 {[%clk 0:01:46]} 15. b4 {[%clk 0:01:49]}  Nd7 {[%clk 0:01:45]} 16. f4 {[%clk 0:01:47]}  Bf6 {[%clk 0:01:41]} 17. Be3 {[%clk 0:01:46]}  Nb6 {[%clk 0:01:34]} 18. O-O-O {[%clk 0:01:25]}  O-O-O {[%clk 0:01:31]} 19. Bd3 {[%clk 0:01:07]}  Rhe8 {[%clk 0:01:22]} 20. Bf2 {[%clk 0:01:06]}  g5 {[%clk 0:01:13]} 21. f5 {[%clk 0:01:04]}  Bc4 {[%clk 0:01:11]} 22. Nde2 {[%clk 0:01:03]}  Bxd3 {[%clk 0:00:59]} 23. cxd3 {[%clk 0:01:04]}  d5 {[%clk 0:00:54]} 24. Kc2 {[%clk 0:00:48]}  dxe4 {[%clk 0:00:50]} 25. Nxe4 {[%clk 0:00:49]}  Be5 {[%clk 0:00:48]} 26. h4 {[%clk 0:00:46]}  g4 {[%clk 0:00:46]} 27. h5 {[%clk 0:00:44]}  Nd5 {[%clk 0:00:43]} 28. a3 {[%clk 0:00:43]}  Nf6 {[%clk 0:00:34]} 29. Rg1 {[%clk 0:00:34]}  Nxe4 {[%clk 0:00:23]} 30. dxe4 {[%clk 0:00:35]}  Rg8 {[%clk 0:00:22]} 31. Be3 {[%clk 0:00:35]}  g3 {[%clk 0:00:21]} 32. Bxh6 {[%clk 0:00:33]}  Rg4 {[%clk 0:00:19]} 33. Rg2 {[%clk 0:00:25]}  Rh8 {[%clk 0:00:18]} 34. Be3 {[%clk 0:00:17]}  Rxh5 {[%clk 0:00:18]} 35. Nd4 {[%clk 0:00:07]}  Bxd4 {[%clk 0:00:16]} 36. Bxd4 {[%clk 0:00:07]}  Rh2 {[%clk 0:00:16]} 0-1


[Site "https://www.chess.com"]